fUST/lending_fUST_20250906
["ID","MTS","AMOUNT","RATE_DAILY","PERIOD"]
[383724024,1757100659731,-480.0,0.00014794,2]
[383724025,1757100659741,-480.0,0.00014794,2]
[383724026,1757100659750,-480.0,0.00014794,2]
[383724027,1757100659760,-480.0,0.00014794,2]
[383724028,1757100659769,-480.0,0.00014794,2]
[383724029,1757100659779,-480.0,0.00014794,2]
[383724030,1757100659789,-480.0,0.00014794,2]
[383724031,1757100659798,-681.88,0.00014794,2]
[383724032,1757100659808,-2699.96,0.00014794,2]
[383724033,1757100659817,-480.0,0.00014794,2]
[383724034,1757100659827,-480.0,0.00014794,2]
[383724035,1757100659836,-480.0,0.00014794,2]
[383724036,1757100659846,-151.0,0.00014808,2]
[383724037,1757100659856,-151.0,0.00014808,2]
[383724038,1757100659866,-151.0,0.00014808,2]
[383724039,1757100659875,-151.0,0.00014808,2]
[383724040,1757100659885,-155.761792,0.00014808,2]
[383724041,1757100659896,-151.0,0.00014808,2]
[383724042,1757100659907,-151.0,0.00014808,2]
[383724043,1757100659917,-290.79,0.00014809,2]
[383724044,1757100659927,-151.0,0.00014817,2]
[383724045,1757100659936,-290.79,0.00014824,2]
[383724046,1757100659947,-290.79,0.00014838,2]
[383724047,1757100659956,-168.02167146,0.000149,2]
[383724048,1757100659966,-168.02167145,0.000149,2]
[383724049,1757100659976,-168.02167145,0.000149,2]
[383724050,1757100659986,-151.0,0.00014919,2]
[383724051,1757100659996,-151.0,0.00014919,2]
[383724052,1757100660006,-151.0,0.00014919,2]
[383724053,1757100660016,-1000.0,0.00014919,2]
[383724054,1757100660028,-151.0,0.00014919,2]
[383724055,1757100660037,-151.0,0.00014919,2]
[383724056,1757100660047,-1000.0,0.00014919,2]
[383724057,1757100660056,-1000.0,0.00014919,2]
[383724058,1757100660066,-151.0,0.00014919,2]
[383724059,1757100660077,-2264.10087164,0.00014919,2]
[383724060,1757100660087,-151.0,0.00014919,2]
[383724061,1757100660097,-1000.0,0.00014919,2]
[383724062,1757100660107,-151.0,0.00014919,2]
[383724063,1757100660116,-1000.0,0.00014919,2]
[383724064,1757100660126,-151.0,0.00014919,2]
[383724065,1757100660135,-151.0,0.00014919,2]
[383724066,1757100660145,-151.0,0.00014919,2]
[383724067,1757100660155,-1000.0,0.00014919,2]
[383724068,1757100660164,-151.0,0.00014919,2]
[383724069,1757100660174,-250.0,0.00014919,2]
[383724070,1757100660184,-151.0,0.00014919,2]
[383724071,1757100660194,-1000.0,0.00014919,2]
[383724072,1757100660203,-151.0,0.00014919,2]
[383724073,1757100660213,-1000.0,0.00014919,2]
[383724074,1757100660222,-151.0,0.00014919,2]
[383724075,1757100660232,-151.0,0.00014919,2]
[383724076,1757100660242,-250.0,0.00014919,2]
[383724077,1757100660251,-1000.0,0.00014919,2]
[383724078,1757100660261,-151.0,0.00014919,2]
[383724079,1757100660271,-151.0,0.00014919,2]
[383724080,1757100660281,-250.0,0.00014919,2]
[383724081,1757100660291,-151.0,0.00014919,2]
[383724082,1757100660301,-1000.0,0.00014919,2]
[383724083,1757100660310,-151.0,0.00014919,2]
[383724084,1757100660320,-250.0,0.00014919,2]
[383724085,1757100660330,-151.0,0.00014919,2]
[383724086,1757100660340,-1000.0,0.00014919,2]
[383724087,1757100660350,-151.0,0.00014919,2]
[383724088,1757100660359,-250.0,0.00014919,2]
[383724089,1757100660368,-151.0,0.00014919,2]
[383724090,1757100660378,-1000.0,0.00014919,2]
[383724091,1757100660387,-151.0,0.00014919,2]
[383724092,1757100660396,-250.0,0.00014919,2]
[383724093,1757100660405,-151.0,0.00014919,2]
[383724094,1757100660415,-1000.0,0.00014919,2]
[383724095,1757100660425,-151.0,0.00014919,2]
[383724096,1757100660439,-250.0,0.00014919,2]
[383724097,1757100660449,-151.0,0.00014919,2]
[383724098,1757100660459,-1000.0,0.00014919,2]
[383724099,1757100660468,-250.0,0.00014919,2]
[383724100,1757100660478,-151.0,0.00014919,2]
[383724101,1757100660487,-151.0,0.00014919,2]
[383724102,1757100660497,-1000.0,0.00014919,2]
[383724103,1757100660507,-250.0,0.00014919,2]
[383724104,1757100660597,-151.0,0.00014919,2]
[383724105,1757100660608,-151.0,0.00014919,2]
[383724106,1757100660618,-1000.0,0.00014919,2]
[383724107,1757100660628,-250.0,0.00014919,2]
[383724108,1757100660639,-151.0,0.00014919,2]
[383724109,1757100660648,-151.0,0.00014919,2]
[383724110,1757100660657,-1000.0,0.00014919,2]
[383724111,1757100660668,-250.0,0.00014919,2]
[383724112,1757100660678,-151.0,0.00014919,2]
[383724113,1757100660687,-151.0,0.00014919,2]
[383724114,1757100660698,-1000.0,0.00014919,2]
[383724115,1757100660708,-250.0,0.00014919,2]
[383724116,1757100660717,-151.0,0.00014919,2]
[383724117,1757100660727,-151.0,0.00014919,2]
[383724118,1757100660738,-1000.0,0.00014919,2]
[383724119,1757100660747,-250.0,0.00014919,2]
[383724120,1757100660757,-151.0,0.00014919,2]
[383724121,1757100660767,-151.0,0.00014919,2]
[383724122,1757100660776,-1000.0,0.00014919,2]
[383724123,1757100660786,-250.0,0.00014919,2]
[383724124,1757100660796,-250.0,0.00014919,2]
[383724125,1757100660806,-151.12856381,0.00014919,2]
[383724126,1757100660816,-500.0,0.00014919,2]
[383724127,1757100660826,-500.0,0.00014919,2]
[383724128,1757100660835,-500.0,0.00014919,2]
[383724129,1757100660845,-500.0,0.00014919,2]
[383724130,1757100660854,-500.0,0.00014919,2]
[383724131,1757100660864,-500.0,0.00014919,2]
[383724132,1757100660874,-181.08010149,0.00014919,2]
[383724133,1757100660883,-500.0,0.00014919,2]
[383724134,1757100660893,-151.0,0.00014919,2]
[383724135,1757100660903,-20746.26328358,0.00014919,2]
[383724136,1757100660912,-500.0,0.00014919,2]
[383724137,1757100660923,-151.0,0.00014919,2]
[383724138,1757100660933,-500.0,0.00014919,2]
[383724139,1757100660943,-151.0,0.00014919,2]
[383724140,1757100660953,-500.0,0.00014919,2]
[383724141,1757100660963,-151.0,0.00014919,2]
[383724142,1757100660973,-500.0,0.00014919,2]
[383724143,1757100660982,-151.0,0.00014919,2]
[383724144,1757100660992,-500.0,0.00014919,2]
[383724145,1757100661001,-151.0,0.00014919,2]
[383724146,1757100661011,-2347.87260389,0.00014974,2]
[383724147,1757100661020,-232.75116405,0.00015017,2]
[383724148,1757100661031,-2434.74389024,0.00015029,2]
[383724149,1757100661041,-480.0,0.00015067,2]
[383724150,1757100661050,-480.0,0.00015067,2]
[383724151,1757100661060,-1145.44,0.00015067,2]
[383724152,1757100661070,-480.0,0.00015067,2]
[383724153,1757100661080,-607.77,0.00015067,2]
[383724154,1757100661090,-480.0,0.00015067,2]
[383724155,1757100661099,-480.0,0.00015068,2]
[383724156,1757100661108,-636.53,0.00015068,2]
[383724157,1757100661118,-480.0,0.00015068,2]
[383724158,1757100661127,-480.0,0.00015068,2]
[383724159,1757100661137,-480.0,0.00015068,2]
[383724160,1757100661146,-480.0,0.00015068,2]
[383724161,1757100661156,-480.0,0.00015068,2]
[383724162,1757100661165,-480.0,0.00015068,2]
[383724163,1757100661174,-480.0,0.00015068,2]
[383724164,1757100661184,-480.0,0.00015068,2]
[383724165,1757100661193,-480.0,0.00015068,2]
[383724166,1757100661203,-480.0,0.00015068,2]
[383724167,1757100661213,-885.69,0.00015068,2]
[383724168,1757100661222,-480.0,0.00015068,2]
[383724169,1757100661232,-480.0,0.00015068,2]
[383724170,1757100661241,-151.0,0.00015068,2]
[383724171,1757100661251,-170.445601,0.00015068,2]
[383724172,1757100661261,-170.445601,0.00015068,2]
[383724173,1757100661270,-170.445601,0.00015068,2]
[383724174,1757100661283,-170.445601,0.00015068,2]
[383724175,1757100661292,-480.0,0.00015068,2]
[383724176,1757100661302,-205.056266,0.00015068,2]
[383724177,1757100661312,-205.056266,0.00015068,2]
[383724178,1757100661321,-205.056266,0.00015068,2]
[383724179,1757100661330,-205.056266,0.00015068,2]
[383724180,1757100661340,-480.0,0.00015068,2]
[383724181,1757100661350,-282.92,0.00015068,2]
[383724182,1757100661359,-154.198747,0.00015068,2]
[383724183,1757100661368,-154.198747,0.00015068,2]
[383724184,1757100661378,-151.0,0.00015068,2]
[383724185,1757100661388,-154.198747,0.00015068,2]
[383724186,1757100661397,-154.198747,0.00015068,2]
[383724187,1757100661407,-675.05,0.00015068,2]
[383724188,1757100661416,-480.0,0.00015068,2]
[383724189,1757100661426,-151.0,0.00015068,2]
[383724190,1757100661441,-480.0,0.00015068,2]
[383724191,1757100661451,-733.35,0.00015068,2]
[383724192,1757100661460,-480.0,0.00015068,2]
[383724193,1757100661470,-151.0,0.00015068,2]
[383724194,1757100661481,-151.0,0.00015068,2]
[383724195,1757100661491,-151.0,0.00015068,2]
[383724196,1757100661500,-480.0,0.00015068,2]
[383724197,1757100661511,-480.0,0.00015068,2]
[383724198,1757100661520,-480.0,0.00015068,2]
[383724199,1757100661530,-480.0,0.00015068,2]
[383724200,1757100661539,-834.0,0.00015068,2]
[383724201,1757100661549,-480.0,0.00015068,2]
[383724202,1757100661558,-480.0,0.00015068,2]
[383724203,1757100661568,-480.0,0.00015068,2]
[383724204,1757100661578,-480.0,0.00015068,2]
[383724205,1757100661588,-480.0,0.00015068,2]
[383724206,1757100661597,-1094.48,0.00015068,2]
[383724207,1757100661607,-480.0,0.00015068,2]
[383724208,1757100661616,-1029.42,0.00015068,2]
[383724209,1757100661626,-480.0,0.00015068,2]
[383724210,1757100661635,-480.0,0.00015068,2]
[383724211,1757100661644,-770.85,0.00015068,2]
[383724212,1757100661654,-480.0,0.00015068,2]
[383724213,1757100661663,-480.0,0.00015068,2]
[383724214,1757100661676,-1260.97,0.00015068,2]
[383724215,1757100661686,-480.0,0.00015068,2]
[383724216,1757100661696,-918.92,0.00015068,2]
[383724217,1757100661706,-721.24,0.00015068,2]
[383724218,1757100661716,-480.0,0.00015068,2]
[383724219,1757100661725,-1030.08,0.00015068,2]
[383724220,1757100661735,-480.0,0.00015068,2]
[383724221,1757100661745,-480.0,0.00015068,2]
[383724222,1757100661755,-480.0,0.00015068,2]
[383724223,1757100661765,-802.33,0.00015068,2]
[383724224,1757100661775,-151.0,0.00015068,2]
[383724225,1757100661785,-2716.44,0.00015068,2]
[383724226,1757100661795,-480.0,0.00015068,2]
[383724227,1757100661805,-480.0,0.00015068,2]
[383724228,1757100661814,-480.0,0.00015068,2]
[383724229,1757100661824,-480.0,0.00015068,2]
[383724230,1757100661835,-151.0,0.00015068,2]
[383724231,1757100661846,-543.77,0.00015068,2]
[383724232,1757100661856,-151.0,0.00015068,2]
[383724233,1757100661866,-987.78,0.00015068,2]
[383724234,1757100661876,-480.0,0.00015068,2]
[383724235,1757100661886,-480.0,0.00015068,2]
[383724236,1757100661896,-419.056016,0.00015068,2]
[383724237,1757100661907,-419.056016,0.00015068,2]
[383724238,1757100661918,-480.0,0.00015068,2]
[383724239,1757100661929,-419.056016,0.00015068,2]
[383724240,1757100661940,-480.0,0.00015068,2]
[383724241,1757100661950,-419.056016,0.00015068,2]
[383724242,1757100661960,-161.46713333,0.00015068,2]
[383724243,1757100661971,-2144.49,0.00015068,2]
[383724244,1757100661981,-1948.05,0.00015068,2]
[383724245,1757100661991,-480.0,0.00015068,2]
[383724246,1757100662002,-151.0,0.00015068,2]
[383724247,1757100662012,-1431.76,0.00015068,2]
[383724248,1757100662023,-151.0,0.00015068,2]
[383724249,1757100662036,-480.0,0.00015068,2]
[383724250,1757100662047,-840.31,0.00015068,2]
[383724251,1757100662057,-480.0,0.00015068,2]
[383724252,1757100662068,-627.36,0.00015068,2]
[383724253,1757100662080,-783.58,0.00015068,2]
[383724254,1757100662090,-480.0,0.00015068,2]
[383724255,1757100662100,-480.0,0.00015068,2]
[383724256,1757100662111,-480.0,0.00015068,2]
[383724257,1757100662201,-767.65,0.00015068,2]
[383724258,1757100662211,-480.0,0.00015068,2]
[383724259,1757100662221,-842.25,0.00015068,2]
[383724260,1757100662231,-480.0,0.00015068,2]
[383724261,1757100662240,-5311.88,0.00015068,2]
[383724262,1757100662250,-9101.46,0.00015068,2]
[383724263,1757100662260,-1498.2,0.00015068,2]
[383724264,1757100662270,-1068.46,0.00015068,2]
[383724265,1757100662284,-480.0,0.00015068,2]
[383724266,1757100662294,-480.0,0.00015068,2]
[383724267,1757100662304,-480.0,0.00015068,2]
[383724268,1757100662313,-480.0,0.00015068,2]
[383724269,1757100662323,-870.53,0.00015068,2]
[383724270,1757100662333,-240.99,0.00015068,2]
[383724271,1757100662345,-480.0,0.00015068,2]
[383724272,1757100662355,-618.65,0.00015068,2]
[383724273,1757100662364,-480.0,0.00015068,2]
[383724274,1757100662374,-2169.32,0.00015068,2]
[383724275,1757100662384,-1069.3,0.00015068,2]
[383724276,1757100662393,-1428.69,0.00015068,2]
[383724277,1757100662403,-919.56,0.00015068,2]
[383724278,1757100662413,-480.0,0.00015068,2]
[383724279,1757100662421,-480.0,0.00015068,2]
[383724280,1757100662430,-480.0,0.00015068,2]
[383724281,1757100662442,-770.43,0.00015068,2]
[383724282,1757100662451,-4446.72,0.00015068,2]
[383724283,1757100662461,-480.0,0.00015068,2]
[383724284,1757100662470,-5065.44,0.00015068,2]
[383724285,1757100662479,-1798.38,0.00015068,2]
[383724286,1757100662487,-480.0,0.00015068,2]
[383724287,1757100662497,-190.86631507,0.00015068,2]
[383724288,1757100662507,-480.0,0.00015068,2]
[383724289,1757100662516,-1423.94,0.00015068,2]
[383724290,1757100662528,-834.34,0.00015068,2]
[383724291,1757100662538,-1923.38,0.00015068,2]
[383724292,1757100662547,-841.84,0.00015068,2]
[383724293,1757100662557,-480.0,0.00015068,2]
[383724294,1757100662566,-480.0,0.00015068,2]
[383724295,1757100662576,-480.0,0.00015068,2]
[383724296,1757100662586,-750.6,0.00015068,2]
[383724297,1757100662595,-2765.78,0.00015068,2]
[383724298,1757100662605,-515.84,0.00015068,2]
[383724299,1757100662615,-480.0,0.00015068,2]
[383724300,1757100662625,-1675.21,0.00015068,2]
[383724301,1757100662635,-3076.89,0.00015068,2]
[383724302,1757100662646,-650.79,0.00015068,2]
[383724303,1757100662656,-480.0,0.00015068,2]
[383724304,1757100662665,-480.0,0.00015068,2]
[383724305,1757100662675,-480.0,0.00015068,2]
[383724306,1757100662684,-480.0,0.00015068,2]
[383724307,1757100662694,-480.0,0.00015068,2]
[383724308,1757100662703,-480.0,0.00015068,2]
[383724309,1757100662712,-480.0,0.00015068,2]
[383724310,1757100662721,-431.83256565,0.00015068,2]
[383724311,1757100662731,-480.0,0.00015068,2]
[383724312,1757100662741,-681.88,0.00015068,2]
[383724313,1757100662750,-2699.96,0.00015068,2]
[383724314,1757100662759,-480.0,0.00015068,2]
[383724315,1757100662769,-1500.0,0.00015068,2]
[383724316,1757100662778,-1500.0,0.00015068,2]
[383724317,1757100662788,-1500.0,0.00015068,2]
[383724318,1757100662798,-898.69175826,0.00015068,2]
[383724319,1757100662807,-2524.82941417,0.00015084,2]
[383724320,1757100662817,-2618.2481025,0.00015139,2]
[383724321,1757100662826,-2715.12328229,0.00015194,2]
[383724322,1757100662836,-2815.58284374,0.00015249,2]
[383724323,1757100662845,-1500.0,0.00015268,2]
[383724324,1757100662855,-1002.36839475,0.00015268,2]
[383724325,1757100662865,-1500.0,0.00015268,2]
[383724326,1757100662874,-1500.0,0.00015268,2]
[383724327,1757100662884,-2919.75940895,0.00015304,2]
[383724328,1757100662894,-384.96555568,0.00015321,2]
[383724329,1757100662903,-1000.0,0.00015321,2]
[383724330,1757100662912,-1000.0,0.00015321,2]
[383724331,1757100662922,-1000.0,0.00015321,2]
[383724332,1757100662931,-1000.0,0.00015321,2]
[383724333,1757100662941,-1000.0,0.00015321,2]
[383724334,1757100662950,-1000.0,0.00015321,2]
[383724335,1757100662960,-1000.0,0.00015321,2]
[383724336,1757100662970,-480.0,0.00015341,2]
[383724337,1757100662980,-480.0,0.00015341,2]
[383724338,1757100662990,-1145.44,0.00015341,2]
[383724339,1757100663001,-480.0,0.00015341,2]
[383724340,1757100663011,-607.77,0.00015341,2]
[383724341,1757100663021,-480.0,0.00015341,2]
[383724342,1757100663033,-636.53,0.00015342,2]
[383724343,1757100663044,-151.0,0.00015342,2]
[383724344,1757100663055,-480.0,0.00015342,2]
[383724345,1757100663066,-480.0,0.00015342,2]
[383724346,1757100663076,-480.0,0.00015342,2]
[383724347,1757100663087,-480.0,0.00015342,2]
[383724348,1757100663097,-885.69,0.00015342,2]
[383724349,1757100663106,-267.64009041,0.00015342,2]
[383724350,1757100663116,-480.0,0.00015342,2]
[383724351,1757100663126,-170.445601,0.00015342,2]
[383724352,1757100663136,-170.445601,0.00015342,2]
[383724353,1757100663145,-170.445601,0.00015342,2]
[383724354,1757100663155,-170.4456,0.00015342,2]
[383724355,1757100663165,-480.0,0.00015342,2]
[383724356,1757100663174,-205.056266,0.00015342,2]
[383724357,1757100663184,-205.056266,0.00015342,2]
[383724358,1757100663193,-205.056266,0.00015342,2]
[383724359,1757100663202,-205.056258,0.00015342,2]
[383724360,1757100663211,-675.05,0.00015342,2]
[383724361,1757100663220,-480.0,0.00015342,2]
[383724362,1757100663229,-480.0,0.00015342,2]
[383724363,1757100663238,-733.35,0.00015342,2]
[383724364,1757100663248,-480.0,0.00015342,2]
[383724365,1757100663258,-480.0,0.00015342,2]
[383724366,1757100663268,-834.0,0.00015342,2]
[383724367,1757100663279,-480.0,0.00015342,2]
[383724368,1757100663289,-480.0,0.00015342,2]
[383724369,1757100663298,-480.0,0.00015342,2]
[383724370,1757100663308,-480.0,0.00015342,2]
[383724371,1757100663318,-151.0,0.00015342,2]
[383724372,1757100663327,-1094.48,0.00015342,2]
[383724373,1757100663337,-480.0,0.00015342,2]
[383724374,1757100663347,-1029.42,0.00015342,2]
[383724375,1757100663356,-480.0,0.00015342,2]
[383724376,1757100663366,-480.0,0.00015342,2]
[383724377,1757100663375,-770.85,0.00015342,2]
[383724378,1757100663385,-607.54,0.00015342,2]
[383724379,1757100663395,-1260.97,0.00015342,2]
[383724380,1757100663405,-480.0,0.00015342,2]
[383724381,1757100663415,-918.92,0.00015342,2]
[383724382,1757100663425,-721.24,0.00015342,2]
[383724383,1757100663437,-593.84443505,0.00015342,2]
[383724384,1757100663446,-1030.08,0.00015342,2]
[383724385,1757100663456,-480.0,0.00015342,2]
[383724386,1757100663466,-480.0,0.00015342,2]
[383724387,1757100663477,-241.88800298,0.00015342,2]
[383724388,1757100663487,-802.33,0.00015342,2]
[383724389,1757100663497,-2716.44,0.00015342,2]
[383724390,1757100663507,-324.61271457,0.00015342,2]
[383724391,1757100663517,-480.0,0.00015342,2]
[383724392,1757100663526,-480.0,0.00015342,2]
[383724393,1757100663535,-543.77,0.00015342,2]
[383724394,1757100663545,-987.78,0.00015342,2]
[383724395,1757100663555,-480.0,0.00015342,2]
[383724396,1757100663564,-480.0,0.00015342,2]
[383724397,1757100663655,-552.1,0.00015342,2]
[383724398,1757100663666,-480.0,0.00015342,2]
[383724399,1757100663675,-2144.49,0.00015342,2]
[383724400,1757100663685,-1948.05,0.00015342,2]
[383724401,1757100663695,-480.0,0.00015342,2]
[383724402,1757100663704,-1431.76,0.00015342,2]
[383724403,1757100663714,-480.0,0.00015342,2]
[383724404,1757100663724,-840.31,0.00015342,2]
[383724405,1757100663733,-480.0,0.00015342,2]
[383724406,1757100663743,-627.36,0.00015342,2]
[383724407,1757100663753,-783.58,0.00015342,2]
[383724408,1757100663762,-480.0,0.00015342,2]
[383724409,1757100663772,-480.0,0.00015342,2]
[383724410,1757100663782,-767.65,0.00015342,2]
[383724411,1757100663791,-480.0,0.00015342,2]
[383724412,1757100663801,-842.25,0.00015342,2]
[383724413,1757100663811,-480.0,0.00015342,2]
[383724414,1757100663821,-5311.88,0.00015342,2]
[383724415,1757100663830,-9101.46,0.00015342,2]
[383724416,1757100663840,-1498.2,0.00015342,2]
[383724417,1757100663849,-1068.46,0.00015342,2]
[383724418,1757100663859,-480.0,0.00015342,2]
[383724419,1757100663869,-480.0,0.00015342,2]
[383724420,1757100663879,-480.0,0.00015342,2]
[383724421,1757100663888,-177.94,0.00015342,2]
[383724422,1757100663898,-870.53,0.00015342,2]
[383724423,1757100663908,-618.65,0.00015342,2]
[383724424,1757100663918,-480.0,0.00015342,2]
[383724425,1757100663927,-2169.32,0.00015342,2]
[383724426,1757100663937,-1069.3,0.00015342,2]
[383724427,1757100663947,-1428.69,0.00015342,2]
[383724428,1757100663956,-919.56,0.00015342,2]
[383724429,1757100663966,-220.77,0.00015342,2]
[383724430,1757100663976,-480.0,0.00015342,2]
[383724431,1757100663986,-770.43,0.00015342,2]
[383724432,1757100663996,-4446.72,0.00015342,2]
[383724433,1757100664006,-480.0,0.00015342,2]
[383724434,1757100664015,-5065.44,0.00015342,2]
[383724435,1757100664026,-1798.38,0.00015342,2]
[383724436,1757100664037,-480.0,0.00015342,2]
[383724437,1757100664047,-1423.94,0.00015342,2]
[383724438,1757100664056,-834.34,0.00015342,2]
[383724439,1757100664066,-1923.38,0.00015342,2]
[383724440,1757100664075,-841.84,0.00015342,2]
[383724441,1757100664085,-480.0,0.00015342,2]
[383724442,1757100664095,-480.0,0.00015342,2]
[383724443,1757100664105,-480.0,0.00015342,2]
[383724444,1757100664114,-750.6,0.00015342,2]
[383724445,1757100664123,-2765.78,0.00015342,2]
[383724446,1757100664132,-1675.21,0.00015342,2]
[383724447,1757100664141,-480.0,0.00015342,2]
[383724448,1757100664151,-3076.89,0.00015342,2]
[383724449,1757100664160,-650.79,0.00015342,2]
[383724450,1757100664170,-480.0,0.00015342,2]
[383724451,1757100664179,-480.0,0.00015342,2]
[383724452,1757100664191,-480.0,0.00015342,2]
[383724453,1757100664201,-480.0,0.00015342,2]
[383724454,1757100664210,-480.0,0.00015342,2]
[383724455,1757100664220,-480.0,0.00015342,2]
[383724456,1757100664229,-480.0,0.00015342,2]
[383724457,1757100664239,-480.0,0.00015342,2]
[383724458,1757100664249,-681.88,0.00015342,2]
[383724459,1757100664259,-2699.96,0.00015342,2]
[383724460,1757100664269,-480.0,0.00015342,2]
[383724461,1757100664280,-154.198747,0.00015356,2]
[383724462,1757100664291,-154.198747,0.00015356,2]
[383724463,1757100664301,-154.198747,0.00015356,2]
[383724464,1757100664311,-154.19874,0.00015356,2]
[383724465,1757100664321,-151.0,0.00015356,2]
[383724466,1757100664331,-151.0,0.00015356,2]
[383724467,1757100664340,-151.0,0.00015356,2]
[383724468,1757100664350,-3027.79050709,0.00015359,2]
[383724469,1757100664360,-720.0,0.00015368,2]
[383724470,1757100664369,-500.0,0.00015392,2]
[383724471,1757100664379,-2502.91561894,0.00015414,2]
[383724472,1757100664388,-389.0,0.00015463,2]
[383724473,1757100664398,-21513.87502507,0.00015467,2]
[383724474,1757100664407,-500.0,0.00015469,2]
[383724475,1757100664417,-609.49502903,0.00015469,2]
[383724476,1757100664427,-500.0,0.00015494,2]
[383724477,1757100664437,-500.0,0.00015494,2]
[383724478,1757100664447,-250.0,0.00015525,2]
[383724479,1757100664457,-151.0,0.000156,2]
[383724480,1757100664467,-480.0,0.00015615,2]
[383724481,1757100664477,-243.94819392,0.00015615,2]
[383724482,1757100664491,-1145.44,0.00015615,2]
[383724483,1757100664500,-480.0,0.00015615,2]
[383724484,1757100664510,-607.77,0.00015615,2]
[383724485,1757100664520,-636.53,0.00015616,2]
[383724486,1757100664530,-151.0,0.00015616,2]
[383724487,1757100664540,-480.0,0.00015616,2]
[383724488,1757100664550,-480.0,0.00015616,2]
[383724489,1757100664560,-480.0,0.00015616,2]
[383724490,1757100664569,-885.69,0.00015616,2]
[383724491,1757100664579,-480.0,0.00015616,2]
[383724492,1757100664588,-480.0,0.00015616,2]
[383724493,1757100664597,-675.05,0.00015616,2]
[383724494,1757100664607,-435.11,0.00015616,2]
[383724495,1757100664616,-733.35,0.00015616,2]
[383724496,1757100664626,-480.0,0.00015616,2]
[383724497,1757100664635,-834.0,0.00015616,2]
[383724498,1757100664645,-480.0,0.00015616,2]
[383724499,1757100664655,-1094.48,0.00015616,2]
[383724500,1757100664665,-1029.42,0.00015616,2]
[383724501,1757100664674,-480.0,0.00015616,2]
[383724502,1757100664684,-770.85,0.00015616,2]
[383724503,1757100664694,-1260.97,0.00015616,2]
[383724504,1757100664703,-480.0,0.00015616,2]
[383724505,1757100664714,-918.92,0.00015616,2]
[383724506,1757100664724,-721.24,0.00015616,2]
[383724507,1757100664734,-1030.08,0.00015616,2]
[383724508,1757100664744,-480.0,0.00015616,2]
[383724509,1757100664754,-529.25793785,0.00015616,2]
[383724510,1757100664763,-802.33,0.00015616,2]
[383724511,1757100664773,-2716.44,0.00015616,2]
[383724512,1757100664784,-480.0,0.00015616,2]
[383724513,1757100664794,-257.42,0.00015616,2]
[383724514,1757100664805,-543.77,0.00015616,2]
[383724515,1757100664814,-987.78,0.00015616,2]
[383724516,1757100664824,-480.0,0.00015616,2]
[383724517,1757100664833,-480.0,0.00015616,2]
[383724518,1757100664843,-2144.49,0.00015616,2]
[383724519,1757100664853,-1948.05,0.00015616,2]
[383724520,1757100664863,-480.0,0.00015616,2]
[383724521,1757100664873,-1431.76,0.00015616,2]
[383724522,1757100664882,-286.86,0.00015616,2]
[383724523,1757100664892,-840.31,0.00015616,2]